[Event "Late-Titled-Tuesday-Blitz-June-18-2024"]
[Site "Chess.com"]
[Date "2024.06.18"]
[Round "5"]
[White "amylazy"]
[Black "cedchass2006"]
[Result "1-0"]
[WhiteElo "2470"]
[BlackElo "2323"]
[TimeControl "180+1"]
[EndTime "14:55:39 PDT"]
[Termination "amylazy won by checkmate"]

1. d4 {[%clk 0:02:52.8]} 1... Nf6 {[%clk 0:02:47.3]} 2. Nf3 {[%clk 0:02:48.4]}
2... e6 {[%clk 0:02:31.6]} 3. e3 {[%clk 0:02:47.9]} 3... Ke7 {[%clk 0:02:26.6]}
4. Bd3 {[%clk 0:02:48.3]} 4... g6 {[%clk 0:02:25.3]} 5. O-O {[%clk 0:02:48]}
5... Bg7 {[%clk 0:02:25.6]} 6. e4 {[%clk 0:02:48.1]} 6... h6 {[%clk 0:02:18.8]}
7. c4 {[%clk 0:02:47]} 7... Re8 {[%clk 0:02:18.5]} 8. e5 {[%clk 0:02:47.2]} 8...
Nh7 {[%clk 0:02:18.6]} 9. h4 {[%clk 0:02:28.3]} 9... Kf8 {[%clk 0:02:16]} 10. h5
{[%clk 0:02:28.6]} 10... Ng5 {[%clk 0:02:05.2]} 11. Nxg5 {[%clk 0:02:23.4]}
11... hxg5 {[%clk 0:02:02.4]} 12. hxg6 {[%clk 0:02:21.3]} 12... Nc6 {[%clk
0:01:54]} 13. gxf7 {[%clk 0:02:19.2]} 13... Kxf7 {[%clk 0:01:52.3]} 14. Qh5+
{[%clk 0:02:19.7]} 14... Kg8 {[%clk 0:01:44.9]} 15. Bh7+ {[%clk 0:02:16.9]}
15... Kf8 {[%clk 0:01:44.5]} 16. Bxg5 {[%clk 0:02:03.3]} 16... Ne7 {[%clk
0:01:42.6]} 17. Qf3+ {[%clk 0:02:03]} 17... Nf5 {[%clk 0:01:39.9]} 18. Bxd8
{[%clk 0:02:02]} 18... Rxd8 {[%clk 0:00:36.9]} 19. g4 {[%clk 0:01:57]} 19... Ke7
{[%clk 0:00:30.7]} 20. gxf5 {[%clk 0:01:56.5]} 20... Rh8 {[%clk 0:00:29.9]} 21.
f6+ {[%clk 0:01:56]} 21... Kf8 {[%clk 0:00:29.7]} 22. Qh5 {[%clk 0:01:51.1]}
22... Bxf6 {[%clk 0:00:28.2]} 23. exf6 {[%clk 0:01:50.1]} 23... Rxh7 {[%clk
0:00:27.9]} 24. Qxh7 {[%clk 0:01:49.6]} 24... Ke8 {[%clk 0:00:12.3]} 25. Qg8#
{[%clk 0:01:48.5]} 1-0

[Event "Late-Titled-Tuesday-Blitz-June-18-2024"]
[Site "Chess.com"]
[Date "2024.06.18"]
[Round "5"]
[White "Gyulamiryan-koryun"]
[Black "campochess"]
[Result "0-1"]
[WhiteElo "1662"]
[BlackElo "2186"]
[TimeControl "180+1"]
[EndTime "14:55:49 PDT"]
[Termination "campochess won by checkmate"]

1. e4 {[%clk 0:02:59.1]} 1... c5 {[%clk 0:02:59.9]} 2. Nf3 {[%clk 0:02:58.4]}
2... Nc6 {[%clk 0:03:00]} 3. d4 {[%clk 0:02:58.8]} 3... cxd4 {[%clk 0:03:00]} 4.
Nxd4 {[%clk 0:02:59.4]} 4... Qb6 {[%clk 0:03:00.1]} 5. c3 {[%clk 0:02:53.9]}
5... Nf6 {[%clk 0:02:56.7]} 6. Qd3 {[%clk 0:02:41.2]} 6... a6 {[%clk 0:02:52.8]}
7. Be2 {[%clk 0:02:39.4]} 7... e5 {[%clk 0:02:52.1]} 8. Nf5 {[%clk 0:02:33.5]}
8... d5 {[%clk 0:02:47.2]} 9. exd5 {[%clk 0:02:22.8]} 9... Bxf5 {[%clk
0:02:46.7]} 10. Qxf5 {[%clk 0:02:19.3]} 10... Nxd5 {[%clk 0:02:46.6]} 11. O-O
{[%clk 0:02:16]} 11... Be7 {[%clk 0:02:45.2]} 12. Bf3 {[%clk 0:02:09.7]} 12...
Rd8 {[%clk 0:02:44.4]} 13. Nd2 {[%clk 0:02:02.2]} 13... O-O {[%clk 0:02:42.5]}
14. Nc4 {[%clk 0:02:01.6]} 14... Qc7 {[%clk 0:02:42.6]} 15. Bg5 {[%clk
0:01:56.5]} 15... Bxg5 {[%clk 0:02:38.8]} 16. Qxg5 {[%clk 0:01:56]} 16... Nd4
{[%clk 0:02:32]} 17. Nxe5 {[%clk 0:01:45.7]} 17... f6 {[%clk 0:02:24.2]} 18.
Bxd5+ {[%clk 0:01:43.1]} 18... Rxd5 {[%clk 0:02:23.9]} 19. Qh4 {[%clk
0:01:26.6]} 19... Ne2+ {[%clk 0:02:21.6]} 20. Kh1 {[%clk 0:01:26.3]} 20... Rxe5
{[%clk 0:02:14.7]} 21. Rae1 {[%clk 0:01:22.1]} 21... Rfe8 {[%clk 0:02:14.7]} 22.
f3 {[%clk 0:01:18.5]} 22... Qc5 {[%clk 0:02:09.7]} 23. g4 {[%clk 0:00:52.8]}
23... Nf4 {[%clk 0:02:05.5]} 24. Rd1 {[%clk 0:00:48.7]} 24... Rd5 {[%clk
0:01:56.9]} 25. Qg3 {[%clk 0:00:37.9]} 25... Rxd1 {[%clk 0:01:54.1]} 26. Rxd1
{[%clk 0:00:37.8]} 26... Qe3 {[%clk 0:01:51.8]} 27. g5 {[%clk 0:00:30.8]} 27...
Qe2 {[%clk 0:01:44.8]} 28. Rg1 {[%clk 0:00:23.5]} 28... fxg5 {[%clk 0:01:43]}
29. Qxg5 {[%clk 0:00:22.4]} 29... Qxf3+ {[%clk 0:01:43]} 30. Rg2 {[%clk
0:00:20.6]} 30... Re1# {[%clk 0:01:42.6]} 0-1

[Event "Late-Titled-Tuesday-Blitz-June-18-2024"]
[Site "Chess.com"]
[Date "2024.06.18"]
[Round "5"]
[White "sudtirolese06"]
[Black "Jimonios"]
[Result "0-1"]
[WhiteElo "2463"]
[BlackElo "2647"]
[TimeControl "180+1"]
[EndTime "14:55:53 PDT"]
[Termination "Jimonios won by resignation"]

1. d4 {[%clk 0:02:55.2]} 1... Nf6 {[%clk 0:03:00]} 2. Bf4 {[%clk 0:02:55.4]}
2... d6 {[%clk 0:02:59.8]} 3. Nc3 {[%clk 0:02:55]} 3... g6 {[%clk 0:02:59.1]} 4.
e4 {[%clk 0:02:54.5]} 4... c6 {[%clk 0:02:59.3]} 5. Qd2 {[%clk 0:02:53.7]} 5...
b5 {[%clk 0:02:59.4]} 6. f3 {[%clk 0:02:52]} 6... Nbd7 {[%clk 0:02:55.6]} 7.
Nge2 {[%clk 0:02:33.1]} 7... e5 {[%clk 0:02:45.7]} 8. Be3 {[%clk 0:02:31.4]}
8... Nb6 {[%clk 0:02:39.1]} 9. Ng3 {[%clk 0:02:29.7]} 9... exd4 {[%clk
0:02:35.2]} 10. Bxd4 {[%clk 0:02:30.6]} 10... c5 {[%clk 0:02:35.3]} 11. Bxb5+
{[%clk 0:02:30]} 11... Bd7 {[%clk 0:02:32.7]} 12. Bxd7+ {[%clk 0:02:28.3]} 12...
Nbxd7 {[%clk 0:02:32.2]} 13. Be3 {[%clk 0:02:24.5]} 13... h5 {[%clk 0:02:32.3]}
14. Nd5 {[%clk 0:02:22.3]} 14... h4 {[%clk 0:02:32.1]} 15. Ne2 {[%clk
0:02:22.3]} 15... Nxd5 {[%clk 0:02:30.1]} 16. Qxd5 {[%clk 0:02:20.9]} 16... Rb8
{[%clk 0:02:30.8]} 17. Rb1 {[%clk 0:02:20.7]} 17... h3 {[%clk 0:02:31]} 18. g3
{[%clk 0:02:20.3]} 18... Ne5 {[%clk 0:02:31.1]} 19. O-O {[%clk 0:02:19.1]} 19...
Be7 {[%clk 0:02:17.2]} 20. Nc3 {[%clk 0:02:13.8]} 20... Kf8 {[%clk 0:02:15.6]}
21. Qd1 {[%clk 0:02:12.9]} 21... Qa5 {[%clk 0:02:11.2]} 22. f4 {[%clk
0:02:10.3]} 22... Nc4 {[%clk 0:02:11.2]} 23. Bc1 {[%clk 0:02:10.5]} 23... Bf6
{[%clk 0:02:05.1]} 24. Nd5 {[%clk 0:02:10.1]} 24... Bd4+ {[%clk 0:02:04.6]} 25.
Kh1 {[%clk 0:02:10.1]} 25... Na3 {[%clk 0:02:01.6]} 26. Ra1 {[%clk 0:02:04.8]}
26... Bxb2 {[%clk 0:02:01.5]} 27. Bxb2 {[%clk 0:02:03.8]} 27... Rxb2 {[%clk
0:02:02.4]} 28. Qg4 {[%clk 0:01:51.1]} 28... Rxc2 {[%clk 0:01:57]} 29. Qg5
{[%clk 0:01:47.7]} 29... Rxh2+ {[%clk 0:00:55.4]} 30. Kg1 {[%clk 0:01:39.4]}
30... Rg2+ {[%clk 0:00:56.3]} 31. Kh1 {[%clk 0:01:39.7]} 31... Qd2 {[%clk
0:00:42.7]} 32. Qe7+ {[%clk 0:01:38.8]} 32... Kg8 {[%clk 0:00:41.6]} 33. Qe8+
{[%clk 0:01:38.8]} 33... Kg7 {[%clk 0:00:40.6]} 0-1

[Event "Late-Titled-Tuesday-Blitz-June-18-2024"]
[Site "Chess.com"]
[Date "2024.06.18"]
[Round "5"]
[White "MathiasWomacka"]
[Black "Losingexperience"]
[Result "0-1"]
[WhiteElo "2516"]
[BlackElo "2736"]
[TimeControl "180+1"]
[EndTime "14:55:56 PDT"]
[Termination "Losingexperience won by checkmate"]

1. e4 {[%clk 0:03:00.9]} 1... c5 {[%clk 0:02:59.2]} 2. Nf3 {[%clk 0:02:59.7]}
2... d6 {[%clk 0:02:59.3]} 3. d4 {[%clk 0:02:57.3]} 3... cxd4 {[%clk 0:03:00.2]}
4. Nxd4 {[%clk 0:02:57.2]} 4... Nf6 {[%clk 0:02:59.7]} 5. Nc3 {[%clk 0:02:57.7]}
5... g6 {[%clk 0:02:59.9]} 6. Be3 {[%clk 0:02:56.3]} 6... Nc6 {[%clk 0:02:58.8]}
7. f3 {[%clk 0:02:50.5]} 7... h5 {[%clk 0:02:58.6]} 8. Qd2 {[%clk 0:02:50.1]}
8... Nxd4 {[%clk 0:02:58.6]} 9. Bxd4 {[%clk 0:02:47.3]} 9... Bh6 {[%clk
0:02:58.4]} 10. Be3 {[%clk 0:02:32.5]} 10... Bxe3 {[%clk 0:02:57.8]} 11. Qxe3
{[%clk 0:02:33.4]} 11... Be6 {[%clk 0:02:56]} 12. Bb5+ {[%clk 0:02:29.1]} 12...
Kf8 {[%clk 0:02:55.9]} 13. O-O-O {[%clk 0:02:25.4]} 13... Qa5 {[%clk 0:02:49.6]}
14. a3 {[%clk 0:02:06.7]} 14... Rc8 {[%clk 0:02:47.5]} 15. Be2 {[%clk
0:01:51.1]} 15... Kg7 {[%clk 0:02:44.3]} 16. Kb1 {[%clk 0:01:39.1]} 16... a6
{[%clk 0:02:42.5]} 17. h3 {[%clk 0:01:30.5]} 17... b5 {[%clk 0:02:42]} 18. Nd5
{[%clk 0:01:24.2]} 18... Bxd5 {[%clk 0:02:36.6]} 19. exd5 {[%clk 0:01:25.1]}
19... Rc7 {[%clk 0:02:34.6]} 20. g4 {[%clk 0:01:22.8]} 20... Rhc8 {[%clk
0:02:25.8]} 21. g5 {[%clk 0:01:18.6]} 21... Nd7 {[%clk 0:02:20]} 22. Qxe7 {[%clk
0:00:48.5]} 22... Qb6 {[%clk 0:02:19]} 23. Bd3 {[%clk 0:00:40.5]} 23... b4
{[%clk 0:02:17.9]} 24. axb4 {[%clk 0:00:39.4]} 24... Qxb4 {[%clk 0:02:17.8]} 25.
Rhe1 {[%clk 0:00:27.5]} 25... Rb8 {[%clk 0:02:02.1]} 26. b3 {[%clk 0:00:27.1]}
26... Qa3 {[%clk 0:01:56.9]} 27. Re6 {[%clk 0:00:20.6]} 27... Rxb3+ {[%clk
0:01:53.5]} 28. cxb3 {[%clk 0:00:20.8]} 28... Qxb3+ {[%clk 0:01:54.3]} 29. Ka1
{[%clk 0:00:21.2]} 29... Qa3+ {[%clk 0:01:40.4]} 30. Kb1 {[%clk 0:00:21.1]}
30... Rb7+ {[%clk 0:01:41]} 31. Kc2 {[%clk 0:00:21.2]} 31... Qb2# {[%clk
0:01:39.6]} 0-1

[Event "Late-Titled-Tuesday-Blitz-June-18-2024"]
[Site "Chess.com"]
[Date "2024.06.18"]
[Round "5"]
[White "ACollins05"]
[Black "RebecaJimnz"]
[Result "1-0"]
[WhiteElo "2414"]
[BlackElo "2278"]
[TimeControl "180+1"]
[EndTime "14:55:56 PDT"]
[Termination "ACollins05 won by resignation"]

1. Nf3 {[%clk 0:02:57.3]} 1... Nf6 {[%clk 0:02:58.2]} 2. e3 {[%clk 0:02:57]}
2... d5 {[%clk 0:02:58]} 3. b3 {[%clk 0:02:57.4]} 3... g6 {[%clk 0:02:57.2]} 4.
Bb2 {[%clk 0:02:57.9]} 4... Bg7 {[%clk 0:02:57.8]} 5. d4 {[%clk 0:02:58.4]} 5...
O-O {[%clk 0:02:58.2]} 6. c4 {[%clk 0:02:59.1]} 6... c6 {[%clk 0:02:58.1]} 7.
Nc3 {[%clk 0:02:58.8]} 7... Nbd7 {[%clk 0:02:56.9]} 8. Be2 {[%clk 0:02:58.1]}
8... e6 {[%clk 0:02:56.4]} 9. O-O {[%clk 0:02:58.4]} 9... Qe7 {[%clk 0:02:57]}
10. Rc1 {[%clk 0:02:54.9]} 10... Rd8 {[%clk 0:02:56.3]} 11. Qc2 {[%clk
0:02:53.9]} 11... b6 {[%clk 0:02:49.3]} 12. Rfd1 {[%clk 0:02:54.4]} 12... Bb7
{[%clk 0:02:49.8]} 13. cxd5 {[%clk 0:02:54.6]} 13... cxd5 {[%clk 0:02:49.1]} 14.
Nb5 {[%clk 0:02:54.1]} 14... Rac8 {[%clk 0:02:46.5]} 15. Qb1 {[%clk 0:02:54.1]}
15... a6 {[%clk 0:02:44.8]} 16. Ba3 {[%clk 0:02:54.4]} 16... Nc5 {[%clk
0:02:26.3]} 17. Nc3 {[%clk 0:02:48.7]} 17... Nfe4 {[%clk 0:02:05.1]} 18. Nxe4
{[%clk 0:02:48.4]} 18... dxe4 {[%clk 0:02:05.1]} 19. Nd2 {[%clk 0:02:48.1]}
19... Qg5 {[%clk 0:01:41.7]} 20. dxc5 {[%clk 0:02:44.6]} 20... bxc5 {[%clk
0:01:41.8]} 21. Nc4 {[%clk 0:02:43.2]} 21... Rd3 {[%clk 0:01:28.6]} 22. Bb2
{[%clk 0:02:36.4]} 22... Bxb2 {[%clk 0:01:21.6]} 23. Qxb2 {[%clk 0:02:37.3]}
23... Rcd8 {[%clk 0:01:22]} 24. Bxd3 {[%clk 0:02:35.8]} 24... exd3 {[%clk
0:01:22.9]} 25. f4 {[%clk 0:02:34.9]} 25... Qg4 {[%clk 0:01:17.9]} 26. h3 {[%clk
0:02:34.9]} 26... Qf5 {[%clk 0:01:10.3]} 27. Ne5 {[%clk 0:02:29.7]} 27... Qe4
{[%clk 0:01:03]} 28. Ng4 {[%clk 0:02:27.2]} 28... Kf8 {[%clk 0:00:48.9]} 29.
Qh8+ {[%clk 0:02:23.6]} 29... Ke7 {[%clk 0:00:48.9]} 30. Qf6+ {[%clk 0:02:24.3]}
30... Ke8 {[%clk 0:00:46.3]} 31. Rd2 {[%clk 0:02:23.6]} 31... h5 {[%clk
0:00:41.8]} 32. Ne5 {[%clk 0:02:21.8]} 32... Qxe3+ {[%clk 0:00:41.6]} 33. Kh2
{[%clk 0:02:18.5]} 33... Rd4 {[%clk 0:00:26]} 34. Qxf7+ {[%clk 0:01:58.5]} 34...
Kd8 {[%clk 0:00:25.8]} 35. Rcd1 {[%clk 0:01:58.9]} 35... Rxf4 {[%clk 0:00:10.9]}
36. Rxd3+ {[%clk 0:01:58]} 1-0

[Event "Late-Titled-Tuesday-Blitz-June-18-2024"]
[Site "Chess.com"]
[Date "2024.06.18"]
[Round "5"]
[White "Pelusiansky"]
[Black "Rutricks"]
[Result "0-1"]
[WhiteElo "2570"]
[BlackElo "2813"]
[TimeControl "180+1"]
[EndTime "14:55:58 PDT"]
[Termination "Rutricks won on time"]

1. c4 {[%clk 0:03:00.9]} 1... g6 {[%clk 0:02:56.7]} 2. Nc3 {[%clk 0:03:00.4]}
2... Bg7 {[%clk 0:02:57.6]} 3. g3 {[%clk 0:03:00.8]} 3... d6 {[%clk 0:02:58.2]}
4. Bg2 {[%clk 0:03:01.3]} 4... Nd7 {[%clk 0:02:58.6]} 5. e4 {[%clk 0:03:00.8]}
5... c5 {[%clk 0:02:58.6]} 6. Nge2 {[%clk 0:03:01.1]} 6... Rb8 {[%clk
0:02:58.9]} 7. O-O {[%clk 0:03:00.8]} 7... a6 {[%clk 0:02:59.6]} 8. a4 {[%clk
0:02:57]} 8... b6 {[%clk 0:03:00]} 9. d3 {[%clk 0:02:48.5]} 9... Ngf6 {[%clk
0:03:00.6]} 10. h3 {[%clk 0:02:48.4]} 10... O-O {[%clk 0:03:01.2]} 11. Be3
{[%clk 0:02:49]} 11... Ne8 {[%clk 0:03:01.8]} 12. Qd2 {[%clk 0:02:46.5]} 12...
Nc7 {[%clk 0:03:01.3]} 13. d4 {[%clk 0:02:42.3]} 13... b5 {[%clk 0:02:59.6]} 14.
cxb5 {[%clk 0:02:34.1]} 14... axb5 {[%clk 0:03:00.5]} 15. axb5 {[%clk
0:02:32.5]} 15... Nxb5 {[%clk 0:03:00.6]} 16. Nxb5 {[%clk 0:02:07]} 16... Rxb5
{[%clk 0:03:01.5]} 17. Nc3 {[%clk 0:01:59.8]} 17... Rb8 {[%clk 0:02:53.2]} 18.
Ra7 {[%clk 0:01:34.7]} 18... Qb6 {[%clk 0:02:48.5]} 19. Ra4 {[%clk 0:01:04.9]}
19... cxd4 {[%clk 0:02:03.4]} 20. Bxd4 {[%clk 0:01:02]} 20... Bxd4 {[%clk
0:02:00.9]} 21. Nd5 {[%clk 0:00:49.7]} 21... Bxf2+ {[%clk 0:02:00.4]} 22. Rxf2
{[%clk 0:00:46.2]} 22... Qd8 {[%clk 0:02:01]} 23. Ra7 {[%clk 0:00:39.5]} 23...
Bb7 {[%clk 0:01:52.9]} 24. Kh2 {[%clk 0:00:29.9]} 24... Bxd5 {[%clk 0:01:53]}
25. exd5 {[%clk 0:00:30.5]} 25... Ne5 {[%clk 0:01:52.9]} 26. Qd4 {[%clk
0:00:12.7]} 26... Rb3 {[%clk 0:01:45.9]} 27. Qh4 {[%clk 0:00:12.4]} 27... Qb6
{[%clk 0:01:43.4]} 0-1

[Event "Late-Titled-Tuesday-Blitz-June-18-2024"]
[Site "Chess.com"]
[Date "2024.06.18"]
[Round "5"]
[White "katharinareinecke"]
[Black "Colombiano07"]
[Result "0-1"]
[WhiteElo "2041"]
[BlackElo "2310"]
[TimeControl "180+1"]
[EndTime "14:56:01 PDT"]
[Termination "Colombiano07 won by resignation"]

1. d4 {[%clk 0:03:00.9]} 1... d5 {[%clk 0:02:59.7]} 2. Nf3 {[%clk 0:02:57]} 2...
Nf6 {[%clk 0:02:59.3]} 3. g3 {[%clk 0:02:52]} 3... e6 {[%clk 0:02:59.2]} 4. Bg2
{[%clk 0:02:52.1]} 4... Be7 {[%clk 0:02:59.9]} 5. O-O {[%clk 0:02:51.8]} 5...
O-O {[%clk 0:03:00.8]} 6. c4 {[%clk 0:02:51.8]} 6... dxc4 {[%clk 0:03:01.7]} 7.
Ne5 {[%clk 0:02:51.3]} 7... Nc6 {[%clk 0:03:01.4]} 8. Nxc6 {[%clk 0:02:51.2]}
8... bxc6 {[%clk 0:03:02.3]} 9. Na3 {[%clk 0:02:50.2]} 9... Ba6 {[%clk
0:02:38.7]} 10. Bxc6 {[%clk 0:02:31.9]} 10... Rb8 {[%clk 0:02:38]} 11. Nc2
{[%clk 0:01:59.6]} 11... Nd5 {[%clk 0:02:30.4]} 12. e4 {[%clk 0:01:53.7]} 12...
Nb4 {[%clk 0:02:28.9]} 13. Nxb4 {[%clk 0:01:50.4]} 13... Bxb4 {[%clk 0:02:29.8]}
14. a3 {[%clk 0:01:43.5]} 14... Ba5 {[%clk 0:02:10.2]} 15. Bd2 {[%clk
0:01:41.3]} 15... Bb6 {[%clk 0:01:43.9]} 16. Bc3 {[%clk 0:01:32.2]} 16... Qd6
{[%clk 0:01:43.6]} 17. d5 {[%clk 0:01:28.9]} 17... Rfd8 {[%clk 0:01:40.8]} 18.
Qg4 {[%clk 0:01:24.9]} 18... g6 {[%clk 0:01:34.8]} 19. Bf6 {[%clk 0:01:21.7]}
19... exd5 {[%clk 0:01:11.9]} 20. exd5 {[%clk 0:00:47.1]} 20... Qxf6 {[%clk
0:01:10.4]} 21. h4 {[%clk 0:00:33.7]} 21... c3 {[%clk 0:01:07.1]} 0-1

[Event "Late-Titled-Tuesday-Blitz-June-18-2024"]
[Site "Chess.com"]
[Date "2024.06.18"]
[Round "5"]
[White "Stanbad1"]
[Black "CristhianPortalR"]
[Result "0-1"]
[WhiteElo "2683"]
[BlackElo "2522"]
[TimeControl "180+1"]
[EndTime "14:56:07 PDT"]
[Termination "CristhianPortalR won by checkmate"]

1. d4 {[%clk 0:03:00.9]} 1... d5 {[%clk 0:02:59.6]} 2. Nc3 {[%clk 0:03:00.9]}
2... Nf6 {[%clk 0:02:59.1]} 3. Bf4 {[%clk 0:03:01.1]} 3... Bf5 {[%clk 0:02:52]}
4. e3 {[%clk 0:03:00.9]} 4... e6 {[%clk 0:02:46.8]} 5. Nf3 {[%clk 0:03:00.5]}
5... h6 {[%clk 0:02:46.5]} 6. Ne5 {[%clk 0:03:00]} 6... Be7 {[%clk 0:02:43.3]}
7. g4 {[%clk 0:02:59.6]} 7... Bh7 {[%clk 0:02:42.7]} 8. Bd3 {[%clk 0:03:00.1]}
8... Bxd3 {[%clk 0:02:40.2]} 9. Qxd3 {[%clk 0:03:00.8]} 9... Nbd7 {[%clk
0:02:40]} 10. Rg1 {[%clk 0:03:00.2]} 10... Nxe5 {[%clk 0:02:40.9]} 11. Bxe5
{[%clk 0:03:00.1]} 11... Qd7 {[%clk 0:02:18.2]} 12. O-O-O {[%clk 0:02:59]} 12...
O-O-O {[%clk 0:01:58]} 13. h4 {[%clk 0:02:57.8]} 13... g5 {[%clk 0:01:35.2]} 14.
hxg5 {[%clk 0:02:56]} 14... hxg5 {[%clk 0:01:36.1]} 15. f4 {[%clk 0:02:55.8]}
15... Rhg8 {[%clk 0:01:35.4]} 16. Rdf1 {[%clk 0:02:52.2]} 16... gxf4 {[%clk
0:01:32.7]} 17. g5 {[%clk 0:02:51.3]} 17... Nh5 {[%clk 0:01:30.9]} 18. exf4
{[%clk 0:02:49.3]} 18... Ng7 {[%clk 0:01:31.1]} 19. Bxg7 {[%clk 0:02:41]} 19...
Rxg7 {[%clk 0:01:31.5]} 20. Nd1 {[%clk 0:02:41.2]} 20... Rdg8 {[%clk 0:01:31.9]}
21. Rh1 {[%clk 0:02:41.1]} 21... Bd6 {[%clk 0:01:30.9]} 22. Ne3 {[%clk
0:02:40.2]} 22... c6 {[%clk 0:01:29.2]} 23. c3 {[%clk 0:02:40]} 23... Qc7 {[%clk
0:01:29.8]} 24. Rh4 {[%clk 0:02:36.6]} 24... Qe7 {[%clk 0:01:25.9]} 25. Kc2
{[%clk 0:02:31.2]} 25... f6 {[%clk 0:01:24.1]} 26. gxf6 {[%clk 0:02:29.4]} 26...
Qxf6 {[%clk 0:01:25]} 27. Rfh1 {[%clk 0:02:19.6]} 27... Bxf4 {[%clk 0:01:17.6]}
28. Rf1 {[%clk 0:02:17.5]} 28... Qxh4 {[%clk 0:01:15.8]} 29. Kb3 {[%clk
0:02:10.9]} 29... Bxe3 {[%clk 0:01:14.2]} 30. Qxe3 {[%clk 0:02:10.7]} 30... Qe7
{[%clk 0:01:13.2]} 31. Re1 {[%clk 0:02:05.6]} 31... Rg6 {[%clk 0:01:13.4]} 32.
Qe5 {[%clk 0:02:04]} 32... Qc7 {[%clk 0:01:13.6]} 33. Qh5 {[%clk 0:02:02.8]}
33... Qb6+ {[%clk 0:01:13.4]} 34. Ka3 {[%clk 0:02:02.4]} 34... Qa5+ {[%clk
0:01:09.2]} 35. Kb3 {[%clk 0:02:02.1]} 35... b5 {[%clk 0:01:07.4]} 36. a3 {[%clk
0:01:58.8]} 36... Qa4+ {[%clk 0:01:06.9]} 37. Ka2 {[%clk 0:01:59.1]} 37... Qc4+
{[%clk 0:01:07]} 38. Kb1 {[%clk 0:01:58.8]} 38... Qd3+ {[%clk 0:00:59.7]} 39.
Ka2 {[%clk 0:01:58.3]} 39... Qf5 {[%clk 0:00:55.2]} 40. Qh7 {[%clk 0:01:57.7]}
40... R6g7 {[%clk 0:00:52.1]} 41. Qh6 {[%clk 0:01:57]} 41... Rh7 {[%clk
0:00:46.1]} 42. Qd2 {[%clk 0:01:54.9]} 42... Kd7 {[%clk 0:00:45.9]} 43. Re5
{[%clk 0:01:54.2]} 43... Qf6 {[%clk 0:00:41.9]} 44. Qe2 {[%clk 0:01:53.3]} 44...
Rhg7 {[%clk 0:00:42.2]} 45. a4 {[%clk 0:01:52]} 45... Rg2 {[%clk 0:00:41.8]} 46.
Qd3 {[%clk 0:01:51.4]} 46... Qf2 {[%clk 0:00:39.9]} 47. Qh7+ {[%clk 0:01:48.1]}
47... R8g7 {[%clk 0:00:39.9]} 48. Qb1 {[%clk 0:01:48.5]} 48... Qc2 {[%clk
0:00:39.6]} 49. axb5 {[%clk 0:01:47.4]} 49... Qa4# {[%clk 0:00:38.7]} 0-1

[Event "Late-Titled-Tuesday-Blitz-June-18-2024"]
[Site "Chess.com"]
[Date "2024.06.18"]
[Round "5"]
[White "LoonsDeKoeben"]
[Black "noblerone"]
[Result "0-1"]
[WhiteElo "2410"]
[BlackElo "2537"]
[TimeControl "180+1"]
[EndTime "14:56:07 PDT"]
[Termination "noblerone won by resignation"]

1. Nf3 {[%clk 0:02:58.8]} 1... d5 {[%clk 0:02:58.6]} 2. e3 {[%clk 0:02:50.8]}
2... Nf6 {[%clk 0:02:58.2]} 3. d4 {[%clk 0:02:51]} 3... Bg4 {[%clk 0:02:57.2]}
4. c4 {[%clk 0:02:51]} 4... e6 {[%clk 0:02:56.9]} 5. Nc3 {[%clk 0:02:40.7]} 5...
c6 {[%clk 0:02:56.4]} 6. Be2 {[%clk 0:02:38.2]} 6... Bd6 {[%clk 0:02:51.6]} 7.
cxd5 {[%clk 0:02:37.4]} 7... exd5 {[%clk 0:02:51.3]} 8. h3 {[%clk 0:02:37]} 8...
Bh5 {[%clk 0:02:51.3]} 9. Ne5 {[%clk 0:02:30.4]} 9... Bxe2 {[%clk 0:02:49.9]}
10. Qxe2 {[%clk 0:02:30]} 10... O-O {[%clk 0:02:39.5]} 11. Bd2 {[%clk
0:02:21.7]} 11... Nbd7 {[%clk 0:02:34.5]} 12. Ng4 {[%clk 0:02:21.5]} 12... Ne4
{[%clk 0:02:30.5]} 13. Nxe4 {[%clk 0:02:19.7]} 13... dxe4 {[%clk 0:02:31.4]} 14.
g3 {[%clk 0:01:55]} 14... f5 {[%clk 0:02:24.3]} 15. Nh2 {[%clk 0:01:45.8]} 15...
Nb6 {[%clk 0:02:20.2]} 16. O-O {[%clk 0:01:14.6]} 16... Nd5 {[%clk 0:02:16.3]}
17. Kh1 {[%clk 0:01:10.4]} 17... Qd7 {[%clk 0:02:12.3]} 18. Rae1 {[%clk
0:01:04.8]} 18... Rae8 {[%clk 0:02:11.2]} 19. Qh5 {[%clk 0:01:02.9]} 19... Re6
{[%clk 0:01:45]} 20. Qd1 {[%clk 0:00:32.2]} 20... Rh6 {[%clk 0:01:41.4]} 21. Kg2
{[%clk 0:00:29.5]} 21... f4 {[%clk 0:01:31.9]} 22. Ng4 {[%clk 0:00:29.6]} 22...
f3+ {[%clk 0:01:32.1]} 23. Kg1 {[%clk 0:00:24.7]} 23... Rxh3 {[%clk 0:01:30.3]}
24. Nh2 {[%clk 0:00:21.3]} 24... Qe6 {[%clk 0:01:20.4]} 0-1